fUST/lending_fUST_20240721
["ID","MTS","AMOUNT","RATE_DAILY","PERIOD"]
[332795799,1721530244223,-1628.84,0.00013698,2]
[332795801,1721530244233,-548.43,0.00013698,2]
[332795803,1721530244243,-500.0,0.00013698,2]
[332795805,1721530244253,-761.57,0.00013698,2]
[332795807,1721530244263,-567.16,0.00013698,2]
[332795809,1721530244273,-523.66,0.00013698,2]
[332795811,1721530244282,-500.0,0.00013698,2]
[332795813,1721530244292,-500.0,0.00013698,2]
[332795815,1721530244302,-166.46989288,0.00013698,2]
[332795817,1721530244311,-500.0,0.00013698,2]
[332795819,1721530244321,-872.41,0.00013698,2]
[332795821,1721530244330,-353.74643827,0.00013698,2]
[332795823,1721530244344,-2258.16,0.00013698,2]
[332795825,1721530244354,-500.42433486,0.00013698,2]
[332795827,1721530244364,-500.0,0.00013698,2]
[332795829,1721530244374,-1117.04,0.00013698,2]
[332795832,1721530244385,-500.0,0.00013698,2]
[332795834,1721530244394,-1407.54,0.00013698,2]
[332795835,1721530244403,-500.0,0.00013698,2]
[332795837,1721530244413,-500.0,0.00013698,2]
[332795839,1721530244423,-500.0,0.00013698,2]
[332795841,1721530244432,-5252.85,0.00013698,2]
[332795843,1721530244441,-501.5293362,0.00013698,2]
[332795845,1721530244451,-500.0,0.00013698,2]
[332795847,1721530244460,-780.96,0.00013698,2]
[332795849,1721530244470,-308.42000354,0.00013698,2]
[332795887,1721530244836,-191.57999646,0.00013698,2]
[332795888,1721530244846,-2110.77,0.00013698,2]
[332795889,1721530244856,-419.14849788,0.00013698,2]
[332795890,1721530244868,-984.07,0.00013698,2]
[332795891,1721530244879,-500.0,0.00013698,2]
[332795892,1721530244891,-500.0,0.00013698,2]
[332795893,1721530244903,-915.65,0.00013698,2]
[332795894,1721530244913,-8254.48,0.00013698,2]
[332795895,1721530244925,-500.0,0.00013698,2]
[332795896,1721530244934,-500.0,0.00013698,2]
[332795897,1721530244945,-500.0,0.00013698,2]
[332795898,1721530244958,-500.0,0.00013698,2]
[332795899,1721530244970,-500.0,0.00013698,2]
[332795900,1721530244979,-500.0,0.00013698,2]
[332795901,1721530244990,-500.0,0.00013698,2]
[332795902,1721530244999,-500.0,0.00013698,2]
[332795903,1721530245009,-107.90204981,0.00013698,2]
[332795905,1721530246015,-392.09795019,0.00013698,2]
[332795906,1721530246025,-500.0,0.00013698,2]
[332795907,1721530246034,-500.0,0.00013698,2]
[332795908,1721530246044,-7865.03,0.00013698,2]
[332795909,1721530246054,-2055.64,0.00013698,2]
[332795910,1721530246063,-500.0,0.00013698,2]
[332795911,1721530246073,-3110.04,0.00013698,2]
[332795912,1721530246082,-500.0,0.00013698,2]
[332795913,1721530246092,-669.39,0.00013698,2]
[332795914,1721530246101,-500.0,0.00013698,2]
[332795915,1721530246111,-500.0,0.00013698,2]
[332795916,1721530246121,-500.0,0.00013698,2]
[332795917,1721530246131,-500.0,0.00013698,2]
[332795918,1721530246140,-500.0,0.00013698,2]
[332795919,1721530246149,-500.0,0.00013698,2]
[332795920,1721530246158,-500.0,0.00013698,2]
[332795921,1721530246168,-524.08,0.00013698,2]
[332795922,1721530246177,-2490.77,0.00013698,2]
[332795923,1721530246187,-500.0,0.00013698,2]
[332795924,1721530246196,-500.0,0.00013698,2]
[332795926,1721530246206,-502.58812727,0.00013698,2]
[332795927,1721530246216,-500.0,0.00013698,2]
[332795929,1721530246226,-500.0,0.00013698,2]
[332795931,1721530246235,-500.0,0.00013698,2]
[332795933,1721530246246,-3661.62,0.00013698,2]
[332795935,1721530246255,-500.0,0.00013698,2]
[332795937,1721530246265,-500.0,0.00013698,2]
[332795939,1721530246274,-500.0,0.00013698,2]
[332795941,1721530246284,-500.0,0.00013698,2]
[332795942,1721530246293,-3331.76,0.00013698,2]
[332795944,1721530246302,-3010.76,0.00013698,2]
[332795945,1721530246312,-480.92618224,0.00013698,2]
[332795946,1721530246322,-500.0,0.00013698,2]
[332795947,1721530246333,-500.0,0.00013698,2]
[332795948,1721530246351,-500.0,0.00013698,2]
[332795949,1721530246367,-992.04,0.00013698,2]
[332795950,1721530246377,-1783.23,0.00013698,2]
[332795951,1721530246386,-500.0,0.00013698,2]
[332795952,1721530246396,-1255.41,0.00013698,2]
[332795953,1721530246406,-4772.42,0.00013698,2]
[332795954,1721530246416,-501.34951286,0.00013698,2]
[332795955,1721530246426,-500.0,0.00013698,2]
[332795956,1721530246436,-574.82,0.00013698,2]
[332795957,1721530246446,-500.0,0.00013698,2]
[332795958,1721530246456,-500.0,0.00013698,2]
[332795959,1721530246465,-500.0,0.00013698,2]
[332795960,1721530246477,-553.50097455,0.00013698,2]
[332795962,1721530246487,-2479.47,0.00013698,2]
[332795963,1721530246497,-500.0,0.00013698,2]
[332795964,1721530246507,-500.0,0.00013698,2]
[332795965,1721530246518,-506.8348777,0.00013698,2]
[332795966,1721530246528,-500.0,0.00013698,2]
[332795967,1721530246539,-500.0,0.00013698,2]
[332795968,1721530246551,-500.0,0.00013698,2]
[332795969,1721530246561,-500.0,0.00013698,2]
[332795970,1721530246571,-553.37,0.00013698,2]
[332795971,1721530246580,-500.0,0.00013698,2]
[332795972,1721530246589,-500.0,0.00013698,2]
[332795973,1721530246599,-646.41911865,0.00013698,2]
[332795974,1721530246662,-500.0,0.00013698,2]
[332795975,1721530246671,-500.0,0.00013698,2]
[332795976,1721530246681,-505.15585525,0.00013698,2]
[332795977,1721530246690,-500.0,0.00013698,2]
[332795978,1721530246699,-501.43167891,0.00013698,2]
[332795979,1721530246709,-2024.97,0.00013698,2]
[332795981,1721530246719,-4772.11,0.00013698,2]
[332795983,1721530246729,-504.82506107,0.00013698,2]
[332795984,1721530246738,-500.0,0.00013698,2]
[332795985,1721530246747,-1906.3,0.00013698,2]
[332795986,1721530246757,-500.0,0.00013698,2]
[332795987,1721530246766,-505.04722869,0.00013698,2]
[332795988,1721530246775,-501.05158394,0.00013698,2]
[332795989,1721530246784,-506.67046312,0.00013698,2]
[332795990,1721530246794,-244.6032526,0.00013698,2]
[332795991,1721530246803,-500.0,0.00013698,2]
[332795992,1721530246814,-1088.1,0.00013698,2]
[332795993,1721530246823,-500.0,0.00013698,2]
[332795994,1721530246832,-3025.36,0.00013698,2]
[332795995,1721530246841,-362.07545012,0.00013698,2]
[332795996,1721530246851,-11449.06,0.00013698,2]
[332795997,1721530246860,-500.0,0.00013698,2]
[332795998,1721530246869,-500.0,0.00013698,2]
[332795999,1721530246879,-503.40087268,0.00013698,2]
[332796000,1721530246888,-8640.91,0.00013698,2]
[332796001,1721530246902,-500.0,0.00013698,2]
[332796002,1721530246924,-500.0,0.00013698,2]
[332796003,1721530246946,-500.0,0.00013698,2]
[332796004,1721530246966,-2497.91,0.00013698,2]
[332796005,1721530246986,-500.0,0.00013698,2]
[332796006,1721530247007,-537.2978861,0.00013698,2]
[332796007,1721530247027,-685.57,0.00013698,2]
[332796008,1721530247048,-500.0,0.00013698,2]
[332796009,1721530247068,-500.0,0.00013698,2]
[332796010,1721530247090,-500.0,0.00013698,2]
[332796011,1721530247113,-518.55,0.00013698,2]
[332796012,1721530247129,-506.40127866,0.00013698,2]
[332796013,1721530247138,-500.0,0.00013698,2]
[332796014,1721530247147,-500.0,0.00013698,2]
[332796015,1721530247157,-603.13559602,0.00013698,2]
[332796016,1721530247165,-500.0,0.00013698,2]
[332796017,1721530247174,-500.0,0.00013698,2]
[332796018,1721530247183,-1229.65,0.00013698,2]
[332796019,1721530247193,-500.0,0.00013698,2]
[332796020,1721530247203,-500.0,0.00013698,2]
[332796021,1721530247212,-500.0,0.00013698,2]
[332796022,1721530247222,-150.0,0.00013698,2]
[332796023,1721530247232,-500.0,0.00013698,2]
[332796024,1721530247241,-2630.03,0.00013698,2]
[332796025,1721530247250,-500.0,0.00013698,2]
[332796026,1721530247259,-1303.35,0.00013698,2]
[332796027,1721530247269,-715.2,0.00013698,2]
[332796028,1721530247278,-500.0,0.00013698,2]
[332796029,1721530247287,-2531.57,0.00013698,2]
[332796030,1721530247297,-2531.57,0.00013698,2]
[332796031,1721530247306,-2531.57,0.00013698,2]
[332796032,1721530247315,-500.0,0.00013698,2]
[332796033,1721530247325,-2531.57,0.00013698,2]
[332796034,1721530247334,-2531.57,0.00013698,2]
[332796035,1721530247346,-2531.57,0.00013698,2]
[332796036,1721530247355,-277.30974389,0.00013698,2]
[332796037,1721530247364,-2531.57,0.00013698,2]
[332796038,1721530247375,-2531.57,0.00013698,2]
[332796039,1721530247385,-2531.57,0.00013698,2]
[332796040,1721530247394,-2531.57,0.00013698,2]
[332796041,1721530247403,-2531.57,0.00013698,2]
[332796042,1721530247412,-2531.57,0.00013698,2]
[332796043,1721530247422,-1053.43,0.00013698,2]
[332796044,1721530247432,-2531.57,0.00013698,2]
[332796045,1721530247441,-2531.57,0.00013698,2]
[332796046,1721530247450,-936.75,0.00013698,2]
[332796047,1721530247460,-955.41,0.00013698,2]
[332796048,1721530247470,-500.0,0.00013698,2]
[332796049,1721530247479,-501.3188156,0.00013698,2]
[332796050,1721530247489,-613.45,0.00013698,2]
[332796051,1721530247498,-2188.61,0.00013698,2]
[332796052,1721530247508,-500.0,0.00013698,2]
[332796053,1721530247518,-500.0,0.00013698,2]
[332796054,1721530247527,-518.51648831,0.00013698,2]
[332796055,1721530247536,-1033.34,0.00013698,2]
[332796056,1721530247546,-500.0,0.00013698,2]
[332796057,1721530247555,-500.0,0.00013698,2]
[332796058,1721530247564,-12255.37,0.00013698,2]
[332796059,1721530247573,-500.0,0.00013698,2]
[332796060,1721530247582,-585.13,0.00013698,2]
[332796061,1721530247592,-1073.94,0.00013698,2]
[332796062,1721530247601,-847.46,0.00013698,2]
[332796063,1721530247610,-1139.95,0.00013698,2]
[332796064,1721530247620,-259.81166719,0.00013698,2]
[332796065,1721530247629,-500.0,0.00013698,2]
[332796066,1721530247638,-500.0,0.00013698,2]
[332796067,1721530247647,-500.0,0.00013698,2]
[332796068,1721530247656,-500.0,0.00013698,2]
[332796069,1721530247666,-1083.57,0.00013698,2]
[332796070,1721530247676,-25135.58,0.00013698,2]
[332796071,1721530247685,-1087.85,0.00013698,2]
[332796072,1721530247694,-2570.26,0.00013698,2]
[332796073,1721530247704,-500.0,0.00013698,2]
[332796074,1721530247713,-500.0,0.00013698,2]
[332796075,1721530247723,-500.0,0.00013698,2]
[332796076,1721530247732,-500.0,0.00013698,2]
[332796077,1721530247741,-500.0,0.00013698,2]
[332796078,1721530247751,-245.90148545,0.00013698,2]
[332796079,1721530247759,-500.0,0.00013698,2]
[332796080,1721530247768,-1595.18,0.00013698,2]
[332796081,1721530247777,-500.0,0.00013698,2]
[332796082,1721530247786,-4094.45,0.00013698,2]
[332796083,1721530247795,-500.0,0.00013698,2]
[332796084,1721530247805,-677.83,0.00013698,2]
[332796085,1721530247815,-1807.24,0.00013698,2]
[332796086,1721530247824,-901.02,0.00013698,2]
[332796087,1721530247835,-500.0,0.00013698,2]
[332796088,1721530247844,-500.0,0.00013698,2]
[332796089,1721530247854,-500.0,0.00013698,2]
[332796090,1721530247863,-500.0,0.00013698,2]
[332796091,1721530247873,-1135.11,0.00013698,2]
[332796092,1721530247882,-500.0,0.00013698,2]
[332796093,1721530247892,-582.4,0.00013698,2]
[332796094,1721530247902,-500.0,0.00013698,2]
[332796095,1721530247911,-500.0,0.00013698,2]
[332796096,1721530247920,-2312.84,0.00013698,2]
[332796097,1721530247930,-2282.34,0.00013698,2]
[332796098,1721530247939,-6903.1,0.00013698,2]
[332796099,1721530247949,-502.2429734,0.00013698,2]
[332796100,1721530247959,-500.0,0.00013698,2]
[332796101,1721530247970,-500.0,0.00013698,2]
[332796102,1721530247979,-500.0,0.00013698,2]
[332796103,1721530247989,-500.0,0.00013698,2]
[332796104,1721530247999,-1754.49,0.00013698,2]
[332796105,1721530248009,-500.0,0.00013698,2]
[332796106,1721530248021,-500.97080716,0.00013698,2]
[332796107,1721530248031,-195.08991549,0.00013698,2]
[332796108,1721530248040,-500.0,0.00013698,2]
[332796109,1721530248050,-500.0,0.00013698,2]
[332796110,1721530248061,-1936.83,0.00013698,2]
[332796111,1721530248070,-503.5797547,0.00013698,2]
[332796112,1721530248080,-500.0,0.00013698,2]
[332796113,1721530248091,-500.0,0.00013698,2]
[332796114,1721530248103,-391.501239,0.00013699,2]
[332796115,1721530248113,-3000.0,0.00013699,2]
[332796116,1721530248124,-2531.57,0.00013703,2]
[332796117,1721530248134,-442.8614433,0.000138,2]
[332796118,1721530248144,-153.0,0.000138,2]
[332796119,1721530248154,-206.5817573,0.000138,2]
[332796120,1721530248164,-153.0,0.000138,2]
[332796121,1721530248175,-367.35615468,0.00013803,2]
[332796122,1721530248186,-5304.19710114,0.00013926,2]
[332796123,1721530248195,-1071.51413581,0.00013951,2]
[332796124,1721530248205,-500.0,0.00013957,2]
[332796125,1721530248216,-150.657,0.00013958,2]
[332796126,1721530248226,-505.0,0.00013958,2]
[332796127,1721530248237,-1413.604,0.00013958,2]
[332796128,1721530248247,-150.787,0.00013958,2]
[332796129,1721530248258,-500.0,0.00013961,2]
[332796130,1721530248268,-1071.51413581,0.00013962,2]
[332796131,1721530248279,-6429.08481486,0.00013962,2]
[332796132,1721530248289,-155.0,0.0001397,2]
[332796133,1721530248299,-624.728192,0.0001397,2]
[332796134,1721530248310,-500.0,0.0001397,2]
[332796135,1721530248319,-2531.57,0.0001397,2]
[332796136,1721530248330,-500.0,0.00013971,2]
[332796137,1721530248343,-500.0,0.00013971,2]
[332796138,1721530248353,-500.0,0.00013971,2]
[332796139,1721530248365,-500.0,0.00013971,2]
[332796140,1721530248375,-500.0,0.00013971,2]
[332796141,1721530248391,-500.0,0.00013971,2]
[332796142,1721530248402,-500.0,0.00013971,2]
[332796143,1721530248415,-549.25474034,0.00013971,2]
[332796144,1721530248429,-500.0,0.00013971,2]
[332796145,1721530248439,-500.0,0.00013971,2]
[332796146,1721530248449,-500.0,0.00013971,2]
[332796147,1721530248458,-500.0,0.00013971,2]
[332796148,1721530248467,-500.0,0.00013971,2]
[332796149,1721530248478,-500.0,0.00013971,2]
[332796150,1721530248488,-2531.57,0.00013971,2]
[332796151,1721530248497,-2531.57,0.00013971,2]
[332796152,1721530248507,-2531.57,0.00013971,2]
[332796153,1721530248520,-2531.57,0.00013971,2]
[332796154,1721530248531,-2531.57,0.00013971,2]
[332796155,1721530248540,-2531.57,0.00013971,2]
[332796156,1721530248551,-2531.57,0.00013971,2]
[332796157,1721530248561,-2531.79092737,0.00013971,2]
[332796158,1721530248572,-1678.0656644,0.00013972,2]
[332796159,1721530248582,-500.0,0.00013972,2]
[332796160,1721530248593,-500.0,0.00013972,2]
[332796161,1721530248604,-500.0,0.00013972,2]
[332796162,1721530248614,-520.34,0.00013972,2]
[332796163,1721530248625,-500.0,0.00013972,2]
[332796164,1721530248634,-505.21996878,0.00013972,2]
[332796165,1721530248645,-500.0,0.00013972,2]
[332796166,1721530248655,-534.39,0.00013972,2]
[332796167,1721530248665,-500.0,0.00013972,2]
[332796168,1721530248677,-505.04235756,0.00013972,2]
[332796169,1721530248688,-500.0,0.00013972,2]
[332796170,1721530248699,-159.49370586,0.00013972,2]
[332796171,1721530248712,-500.0,0.00013972,2]
[332796172,1721530248723,-1735.28,0.00013972,2]
[332796173,1721530248734,-1744.21,0.00013972,2]
[332796174,1721530248745,-500.78,0.00013972,2]
[332796175,1721530248755,-500.0,0.00013972,2]
[332796176,1721530248767,-501.3147103,0.00013972,2]
[332796177,1721530248778,-500.0,0.00013972,2]
[332796178,1721530248789,-500.0,0.00013972,2]
[332796179,1721530248801,-500.0,0.00013972,2]
[332796180,1721530248812,-633.18,0.00013972,2]
[332796181,1721530248823,-511.69752163,0.00013972,2]
[332796182,1721530248833,-500.0,0.00013972,2]
[332796183,1721530248844,-500.0,0.00013972,2]
[332796184,1721530248854,-1173.25,0.00013972,2]
[332796185,1721530248864,-517.56755125,0.00013972,2]
[332796186,1721530248875,-500.0,0.00013972,2]
[332796187,1721530248886,-558.09,0.00013972,2]
[332796188,1721530248896,-823.11,0.00013972,2]
[332796189,1721530248906,-949.96,0.00013972,2]
[332796190,1721530248916,-500.0,0.00013972,2]
[332796191,1721530248927,-500.0,0.00013972,2]
[332796192,1721530248938,-500.0,0.00013972,2]
[332796193,1721530248949,-663.11,0.00013972,2]
[332796194,1721530248958,-500.0,0.00013972,2]
[332796195,1721530248969,-500.0,0.00013972,2]
[332796196,1721530248980,-500.0,0.00013972,2]
[332796197,1721530248990,-552.99,0.00013972,2]
[332796198,1721530249000,-500.0,0.00013972,2]
[332796199,1721530249011,-500.0,0.00013972,2]
[332796200,1721530249022,-501.95092707,0.00013972,2]
[332796201,1721530249032,-500.0,0.00013972,2]
[332796202,1721530249043,-500.0,0.00013972,2]
[332796203,1721530249053,-500.0,0.00013972,2]
[332796204,1721530249063,-2331.2,0.00013972,2]
[332796205,1721530249074,-500.0,0.00013972,2]
[332796206,1721530249085,-500.0,0.00013972,2]
[332796207,1721530249095,-500.0,0.00013972,2]
[332796208,1721530249106,-500.0,0.00013972,2]
[332796209,1721530249116,-500.0,0.00013972,2]
[332796210,1721530249127,-500.0,0.00013972,2]
[332796211,1721530249139,-500.0,0.00013972,2]
[332796212,1721530249150,-500.0,0.00013972,2]
[332796213,1721530249160,-829.28,0.00013972,2]
[332796214,1721530249171,-500.0,0.00013972,2]
[332796215,1721530249182,-500.0,0.00013972,2]
[332796216,1721530249192,-870.11,0.00013972,2]
[332796217,1721530249203,-500.0,0.00013972,2]
[332796218,1721530249214,-500.0,0.00013972,2]
[332796219,1721530249225,-162.11860592,0.00013972,2]
[332796220,1721530249236,-811.14,0.00013972,2]
[332796221,1721530249246,-500.0,0.00013972,2]
[332796222,1721530249257,-1056.28,0.00013972,2]
[332796223,1721530249267,-500.0,0.00013972,2]
[332796224,1721530249279,-500.0,0.00013972,2]
[332796225,1721530249290,-500.0,0.00013972,2]
[332796226,1721530249301,-500.0,0.00013972,2]
[332796227,1721530249312,-2579.77,0.00013972,2]
[332796228,1721530249325,-500.0,0.00013972,2]
[332796229,1721530249337,-500.0,0.00013972,2]
[332796230,1721530249350,-500.0,0.00013972,2]
[332796231,1721530249362,-500.0,0.00013972,2]
[332796232,1721530249373,-500.0,0.00013972,2]
[332796233,1721530249384,-500.0,0.00013972,2]
[332796234,1721530249395,-528.81,0.00013972,2]
[332796235,1721530249406,-500.0,0.00013972,2]
[332796236,1721530249418,-503.04511382,0.00013972,2]
[332796237,1721530249428,-500.0,0.00013972,2]
[332796238,1721530249438,-500.0,0.00013972,2]
[332796239,1721530249449,-500.0,0.00013972,2]
[332796240,1721530249459,-500.0,0.00013972,2]
[332796241,1721530249472,-500.0,0.00013972,2]
[332796242,1721530249482,-500.0,0.00013972,2]
[332796243,1721530249494,-500.0,0.00013972,2]
[332796244,1721530249504,-500.0,0.00013972,2]
[332796245,1721530249515,-500.0,0.00013972,2]
[332796246,1721530249526,-1345.14,0.00013972,2]
[332796247,1721530249537,-512.77449406,0.00013972,2]
[332796248,1721530249548,-500.0,0.00013972,2]
[332796249,1721530249559,-500.0,0.00013972,2]
[332796250,1721530249570,-500.0,0.00013972,2]
[332796251,1721530249581,-2439.07,0.00013972,2]
[332796252,1721530249591,-500.0,0.00013972,2]
[332796253,1721530249602,-500.0,0.00013972,2]
[332796254,1721530249613,-500.0,0.00013972,2]
[332796255,1721530249623,-500.0,0.00013972,2]
[332796256,1721530249633,-500.0,0.00013972,2]
[332796257,1721530249643,-500.0,0.00013972,2]
[332796258,1721530249654,-634.1,0.00013972,2]
[332796259,1721530249665,-500.0,0.00013972,2]
[332796260,1721530249676,-500.0,0.00013972,2]
[332796261,1721530249686,-500.0,0.00013972,2]
[332796262,1721530249697,-500.0,0.00013972,2]
[332796263,1721530249708,-500.0,0.00013972,2]
[332796264,1721530249720,-500.0,0.00013972,2]
[332796265,1721530249731,-500.0,0.00013972,2]
[332796266,1721530249743,-975.87,0.00013972,2]
[332796267,1721530249754,-241.56863767,0.00013972,2]
[332796268,1721530249764,-177.82958708,0.00013972,2]
[332796269,1721530249775,-500.0,0.00013972,2]
[332796270,1721530249785,-758.9,0.00013972,2]
[332796271,1721530249796,-931.1,0.00013972,2]
[332796272,1721530249806,-777.01,0.00013972,2]
[332796273,1721530249816,-500.0,0.00013972,2]
[332796274,1721530249827,-500.0,0.00013972,2]
[332796275,1721530249837,-500.0,0.00013972,2]
[332796276,1721530249848,-617.71,0.00013972,2]
[332796277,1721530249858,-500.0,0.00013972,2]
[332796278,1721530249868,-500.0,0.00013972,2]
[332796279,1721530249878,-500.0,0.00013972,2]
[332796280,1721530249889,-596.36,0.00013972,2]
[332796281,1721530249900,-500.0,0.00013972,2]
[332796282,1721530249911,-500.0,0.00013972,2]
[332796283,1721530249923,-500.0,0.00013972,2]
[332796284,1721530249935,-630.88,0.00013972,2]
[332796285,1721530249945,-500.0,0.00013972,2]
[332796286,1721530249955,-624.2,0.00013972,2]
[332796287,1721530249965,-500.0,0.00013972,2]
[332796288,1721530249975,-500.0,0.00013972,2]
[332796289,1721530249985,-500.0,0.00013972,2]
[332796290,1721530249996,-2056.1,0.00013972,2]
[332796291,1721530250007,-533.52,0.00013972,2]
[332796292,1721530250018,-2839.57,0.00013972,2]
[332796293,1721530250028,-500.0,0.00013972,2]
[332796294,1721530250038,-500.0,0.00013972,2]
[332796295,1721530250049,-502.85,0.00013972,2]
[332796296,1721530250060,-500.0,0.00013972,2]
[332796297,1721530250071,-500.0,0.00013972,2]
[332796298,1721530250082,-759.39,0.00013972,2]
[332796299,1721530250093,-809.08,0.00013972,2]
[332796300,1721530250103,-898.53,0.00013972,2]
[332796301,1721530250115,-558.39,0.00013972,2]
[332796302,1721530250125,-500.0,0.00013972,2]
[332796303,1721530250136,-1694.23,0.00013972,2]
[332796304,1721530250146,-500.0,0.00013972,2]
[332796305,1721530250157,-389.18177951,0.00013972,2]
[332796306,1721530250167,-1350.15,0.00013972,2]
[332796307,1721530250178,-500.0,0.00013972,2]
[332796308,1721530250189,-589.98,0.00013972,2]
[332796309,1721530250199,-1300.82,0.00013972,2]
[332796310,1721530250209,-500.0,0.00013972,2]
[332796311,1721530250219,-744.64,0.00013972,2]
[332796312,1721530250230,-1063.01,0.00013972,2]
[332796313,1721530250241,-508.57805667,0.00013972,2]
[332796314,1721530250251,-798.45,0.00013972,2]
[332796315,1721530250261,-1077.14,0.00013972,2]
[332796316,1721530250271,-2867.08,0.00013972,2]
[332796317,1721530250281,-500.0,0.00013972,2]
[332796318,1721530250292,-500.0,0.00013972,2]
[332796319,1721530250303,-607.27,0.00013972,2]
[332796320,1721530250313,-509.41848931,0.00013972,2]
[332796321,1721530250323,-151.0,0.00013972,2]
[332796322,1721530250337,-175.382872,0.00013972,2]
[332796323,1721530250350,-500.0,0.00013972,2]
[332796324,1721530250361,-806.1,0.00013972,2]
[332796325,1721530250373,-500.0,0.00013972,2]
[332796326,1721530250383,-500.0,0.00013972,2]
[332796327,1721530250392,-543.25,0.00013972,2]
[332796328,1721530250402,-500.0,0.00013972,2]
[332796329,1721530250412,-1146.38,0.00013972,2]
[332796330,1721530250423,-519.39971363,0.00013972,2]
[332796331,1721530250433,-614.64,0.00013972,2]
[332796332,1721530250442,-500.0,0.00013972,2]
[332796333,1721530250453,-500.0,0.00013972,2]
[332796334,1721530250464,-4174.87,0.00013972,2]
[332796335,1721530250477,-500.0,0.00013972,2]
[332796336,1721530250487,-500.0,0.00013972,2]
[332796337,1721530250496,-500.0,0.00013972,2]
[332796338,1721530250506,-1426.74,0.00013972,2]
[332796339,1721530250517,-518.903678,0.00013972,2]
[332796340,1721530250527,-500.0,0.00013972,2]
[332796341,1721530250537,-502.02012757,0.00013972,2]
[332796342,1721530250547,-555.45,0.00013972,2]
[332796343,1721530250557,-500.0,0.00013972,2]
[332796344,1721530250567,-697.56,0.00013972,2]
[332796345,1721530250577,-511.85,0.00013972,2]
[332796346,1721530250587,-502.66324291,0.00013972,2]
[332796347,1721530250597,-500.0,0.00013972,2]
[332796348,1721530250607,-500.0,0.00013972,2]
[332796349,1721530250619,-500.0,0.00013972,2]
[332796350,1721530250629,-500.0,0.00013972,2]
[332796351,1721530250639,-500.0,0.00013972,2]
[332796352,1721530250650,-631.7,0.00013972,2]
[332796353,1721530250660,-500.0,0.00013972,2]
[332796354,1721530250670,-500.0,0.00013972,2]
[332796355,1721530250679,-502.15837556,0.00013972,2]
[332796356,1721530250689,-500.0,0.00013972,2]
[332796357,1721530250699,-500.0,0.00013972,2]
[332796358,1721530250708,-500.0,0.00013972,2]
[332796359,1721530250718,-504.61416749,0.00013972,2]
[332796360,1721530250727,-1172.88,0.00013972,2]
[332796361,1721530250738,-1555.37,0.00013972,2]
[332796362,1721530250749,-184.74762428,0.00013972,2]
[332796363,1721530250759,-500.0,0.00013972,2]
[332796364,1721530250771,-500.0,0.00013972,2]
[332796365,1721530250782,-1811.52,0.00013972,2]
[332796366,1721530250793,-310.81795827,0.00013972,2]
[332796367,1721530250803,-500.0,0.00013972,2]
[332796368,1721530250816,-341.5981426,0.00013972,2]
[332796369,1721530250828,-500.0,0.00013972,2]
[332796370,1721530250840,-814.99,0.00013972,2]
[332796371,1721530250851,-500.0,0.00013972,2]
[332796372,1721530250861,-556.06,0.00013972,2]
[332796373,1721530250873,-789.16,0.00013972,2]